Cogmind - Beta 14 *** ADVENTURER MODE // 2025.03.30 @ 10:17:07 Player: EveningMars Result: Destroyed by G-67 Veteran with Field Laser Performance ------------- Evolutions (5) 2500 Regions Visited (11) 2200 Robots Destroyed (39) 195 Value Destroyed (1414) 1414 Prototype IDs (3) 60 Alien Tech Used (0) 0 Bonus (1400) 1400 TOTAL SCORE: 7769 Bonus ------- Follower Combat Kills 446 Entered DSFs 500 Met Imprinter 300 Was Imprinted 300 Friendly Fire -146 Cogmind --------- Core Integrity 0/1000 Matter 75/300 Energy 99/100 System Corruption 3% Temperature Cool (87) Movement Core (50) Location -5/Upper Caves Parts ------- > --- POWER (3) -------- (None) > --- PROPULSION (5) --- (None) > --- UTILITY (5) ------ Improved Signal Interpreter > --- WEAPON (4) ------- (None) > --- INVENTORY (5) ---- Deuterium Engine Improved Heat Sink 0b10 Decoder Chip [Scout] Advanced Target Analyzer Reaction Control System Peak State ------------ > --- POWER ------------ Micro Fission Core Micro Fission Core Micro Fission Core > --- PROPULSION ------- Carbon-fiber Leg Carbon-fiber Leg Carbon-fiber Leg Flexi-carbon Leg > --- UTILITY ---------- Medium Storage Unit Improved Signal Interpreter ECM Suite > --- WEAPON ----------- Advanced Beam Cannon Hypervelocity Gauss Cannon Hypervelocity Gauss Cannon Rocket Array > --- INVENTORY -------- Nuclear Core Aluminum Leg Improved Heat Sink 0b10 Decoder Chip [Scout] Salvage Targeting Computer Advanced Target Analyzer Reaction Control System Trap Extractor Heavy Assault Rifle Mace [Rating: 60] Favorites ----------- Power Nuclear Core Engine Improved Deuterium Engine Power Core Nuclear Core Propulsion Carbon-fiber Leg Leg Carbon-fiber Leg Wheel Wheel Flight Unit Field Propulsion Drive Utility Medium Storage Unit Device Improved Terrain Scanner Storage Medium Storage Unit Processor Improved Signal Interpreter Protection Light Armor Plating Weapon Advanced Beam Cannon Energy Gun EM Pulse Gun Energy Cannon Advanced Beam Cannon Ballistic Gun Heavy Assault Rifle Ballistic Cannon Hypervelocity Gauss Cannon Launcher Rocket Array Impact Weapon Mace Build | -11 -10 -10 -9 -9 -7 -6 -6 -6 -5 -5 -5 ------- Run | Yrd Mat Min Mat Min Zio Pro Fac DSF Fac Upp Upp Slots Evolved 10 | . . . 2 . . . 6 . 2 . . Power 2 | . . . 1 . . . 1 . . . . Propulsion 3 | . . . . . . . 2 . 1 . . Utility 3 | . . . 1 . . . 1 . 1 . . Weapon 2 | . . . . . . . 2 . . . . Parts Attached 61 | 8 1 . 8 3 2 9 1 14 14 1 . Power 15 | 1 . . 2 . 1 3 . 6 2 . . Engine 5 | 1 . . . . 1 1 . 1 1 . . Core 10 | . . . 2 . . 2 . 5 1 . . Reactor . | . . . . . . . . . . . . Propulsion 15 | 2 . . 1 1 . 4 . 4 2 1 . Treads . | . . . . . . . . . . . . Leg 13 | 2 . . 1 1 . 4 . 4 1 . . Wheel 1 | . . . . . . . . . . 1 . Hover . | . . . . . . . . . . . . Flight 1 | . . . . . . . . . 1 . . Utility 11 | 2 1 . 3 1 . 1 1 1 1 . . Device 6 | 1 . . 1 1 . . 1 1 1 . . Storage 2 | 1 1 . . . . . . . . . . Processor 1 | . . . . . . 1 . . . . . Hackware . | . . . . . . . . . . . . Protection 2 | . . . 2 . . . . . . . . Artifact . | . . . . . . . . . . . . Weapon 20 | 3 . . 2 1 1 1 . 3 9 . . Energy Gun 3 | 1 . . 1 . . . . . 1 . . Energy Cannon 2 | . . . . 1 . . . . 1 . . Ballistic Gun 7 | 2 . . 1 . . 1 . . 3 . . Ballistic Cannon 2 | . . . . . . . . 2 . . . Launcher 3 | . . . . . . . . 1 2 . . Special Weapon . | . . . . . . . . . . . . Impact Weapon 3 | . . . . . 1 . . . 2 . . Slashing Weapon . | . . . . . . . . . . . . Piercing Weapon . | . . . . . . . . . . . . Special Melee Weapon . | . . . . . . . . . . . . Unidentified Prototypes 3 | . . . . 1 . . . 1 1 . . Corrupted Parts 2 | . . . . . . 1 . . 1 . . System Corruption 7 | . . . . . . 5 . . 2 . . Parts Lost 30 | . . . 2 . . 4 . 2 21 1 . Power 6 | . . . . . . 1 . 2 3 . . Propulsion 9 | . . . . . . 2 . . 6 1 . Utility 4 | . . . 1 . . 1 . . 2 . . Weapon 11 | . . . 1 . . . . . 10 . . Highest Loss Streak 9 | . . . 1 . . 2 . 1 9 1 . To Critical Strikes . | . . . . . . . . . . . . Average Slot Usage (%) 87 | . 100 100 95 92 100 93 53 79 42 5 5 Engine 7 | . 14 14 . . 10 6 6 4 1 . . Core 11 | . . . 20 22 11 11 6 10 5 . . Leg 19 | . 28 28 22 22 22 20 6 20 6 . . Device 16 | . 14 14 11 15 22 20 6 6 2 . . Storage 9 | . 14 14 11 11 11 11 6 6 4 . . Processor 1 | . . . . . . 1 6 6 5 5 5 Energy Gun 1 | . 14 14 11 . . . . . . . . Energy Cannon 8 | . . . . 11 11 11 6 6 1 . . Ballistic Gun 5 | . 14 14 11 11 3 10 6 2 2 . . Impact Weapon 4 | . . . . . 7 . . . 2 . . Peak Build Rating 60 | 9 9 9 20 21 24 26 28 60 60 6 5 Average Rating 23 | 5 8 9 16 20 23 23 23 43 30 5 5 On Entrance 17 | . 9 9 9 18 21 24 23 23 59 5 5 Naked Turns . | . . . . . . . . . . . . Heaviest Build 63 | 15 20 20 33 34 37 37 34 63 61 . . Greatest Support 65 | 20 20 20 25 25 25 30 15 65 65 10 3 Greatest Overweight (x) 8 | 4 . . 1 1 1 2 2 2 8 . . Average Overweight (x) . | . . . . 1 1 . 2 . 1 . . Largest Inventory Capacity 10 | 8 10 10 10 10 10 10 10 10 10 5 5 Average Capacity 9 | 7 8 10 10 10 10 10 10 10 9 5 5 Most Carried 10 | 3 4 5 9 7 9 10 10 10 10 5 5 Average Carried 8 | 1 3 4 7 7 8 9 10 9 6 4 5 Final Capacity 10 | 8 10 10 10 10 10 10 10 10 5 5 5 Final Carried 10 | 3 4 5 8 7 9 10 10 9 5 5 5 Class Distribution -------------------- 83% | Mutant 11% | Scavenger-Mutant 5% | Gunner Dominant Class ---------------- Mutant | -10/Materials Mutant | -10/Mines Mutant | -9/Materials Mutant | -9/Mines Mutant | -7/Zion Scavenger-Mutant | -6/Proximity Caves Scavenger-Mutant | -6/Factory Gunner | -6/DSF Mutant | -5/Factory Mutant | -5/Upper Caves Mutant | -5/Upper Caves Resources | -11 -10 -10 -9 -9 -7 -6 -6 -6 -5 -5 -5 ----------- Run | Yrd Mat Min Mat Min Zio Pro Fac DSF Fac Upp Upp Matter Collected 1056 | 280 25 . 115 37 25 148 . 80 329 17 . Remotely . | . . . . . . . . . . . . Salvage Created 1474 | 115 84 . 314 64 . 95 . 434 368 . . Parts 74 | 5 6 . 17 8 . 4 . 19 15 . . Haulers Intercepted 1 | . 1 . . . . . . . . . . Recyclers Shooed 1 | 1 . . . . . . . . . . . Parts Field Recycled . | . . . . . . . . . . . . Retrieved Matter . | . . . . . . . . . . . . Parts Self-Destructed 25 | . . . . . . 25 . . . . . Prevented 6 | . . . . . . 6 . . . . . Kills | -11 -10 -10 -9 -9 -7 -6 -6 -6 -5 -5 -5 ------- Run | Yrd Mat Min Mat Min Zio Pro Fac DSF Fac Upp Upp Combat Hostiles Destroyed 33 | . 2 . 6 4 . 4 . 7 10 . . Melee 2 | . . . . . . . . . 2 . . Guns 14 | . 2 . 6 4 . . . . 2 . . Cannons 9 | . . . . . . 3 . 3 3 . . AOE 6 | . . . . . . . . 4 2 . . Classes Destroyed 11 | 2 2 . 2 . . . . 3 2 . . Worker 1 | . . . . . . . . . 1 . . Tunneler 1 | 1 . . . . . . . . . . . Hauler 1 | . 1 . . . . . . . . . . Recycler 2 | 1 . . . . . . . . 1 . . Swarmer 16 | . 2 . . 4 . 4 . . 6 . . Grunt 4 | . . . 3 . . . . . 1 . . Sentry 5 | . . . 3 . . . . . 2 . . Specialist 3 | . . . . . . . . 3 . . . Hunter 4 | . . . . . . . . 4 . . . Programmer 1 | . . . . . . . . . 1 . . Mutant 1 | . . . . . . . . 1 . . . Best Kill Streak 6 | 2 3 . 4 4 . 2 . 4 6 . . Combat Bots Only 5 | . 2 . 4 4 . 2 . 4 5 . . Max Kills in Single Turn 2 | 1 1 . 1 1 . 1 . 2 2 . . Gunslinging . | . . . . . . . . . . . . Exploded 2 | . . . . . . . . 2 1 . . Melee 1 | . . . . . . . . . 1 . . Uniques/NPCs Destroyed . | . . . . . . . . . . . . Combat | -11 -10 -10 -9 -9 -7 -6 -6 -6 -5 -5 -5 -------- Run | Yrd Mat Min Mat Min Zio Pro Fac DSF Fac Upp Upp Hostile Shots Fired 350 | . 31 . 57 14 . 51 . 29 125 23 20 Missed 98 | . 12 . 17 3 . 11 . 7 29 12 7 Damage Taken 4319 | . 105 . 390 64 . 470 . 450 2516 143 181 Core 1274 | . 25 . 49 19 . 90 . 88 690 132 181 Absorbed by Shields . | . . . . . . . . . . . . Ignored by Resistances 1217 | . 38 . 117 22 . 138 . 128 683 40 51 Core Remaining (%) 84 | 100 . 90 . . . 60 . 89 . . . Volleys Fired 86 | 4 7 . 15 4 2 12 . 10 32 . . Largest 4 | 1 2 . 2 2 1 2 . 4 4 . . Hottest 255 | 40 60 . 65 91 68 91 . 235 255 . . Shots Fired 168 | 4 12 . 30 8 2 26 . 33 53 . . Gun 88 | 4 12 . 30 4 . 13 . 2 23 . . Cannon 71 | . . . . 4 2 13 . 27 25 . . Launcher 9 | . . . . . . . . 4 5 . . Special . | . . . . . . . . . . . . Kinetic 84 | . 5 . 15 4 . 13 . 19 28 . . Thermal 46 | . . . . 4 2 13 . 10 17 . . Explosive 9 | . . . . . . . . 4 5 . . Electromagnetic 29 | 4 7 . 15 . . . . . 3 . . Robot Hit Streak 19 | 4 5 . 19 9 . 16 . 7 13 . . Robot Miss Streak 5 | . 2 . 2 . . 1 . 5 2 . . Penetration Max 1 | . . . . . . . . 1 1 . . Secondary Targets 2 | . . . 2 . . . . . . . . Max Gunslinging Chain 1 | . . . 1 . . . . . . . . Shots Hit Robots 129 | 4 6 . 26 4 . 22 . 20 47 . . Core Hits 87 | 3 3 . 11 4 . 6 . 31 29 . . Critical Kills 7 | . . . . . . 1 . 4 2 . . Critical Parts Destroyed 8 | . . . . . . 1 . 6 1 . . Critical Strikes 16 | . . . . . . 2 . 10 4 . . Meltdown 1 | . . . . . . 1 . . . . . Destroy 14 | . . . . . . 1 . 10 3 . . Smash 1 | . . . . . . . . . 1 . . Melee Attacks 29 | . . . . . 22 . . . 7 . . Impact 29 | . . . . . 22 . . . 7 . . Slashing . | . . . . . . . . . . . . Piercing . | . . . . . . . . . . . . Sneak Attacks . | . . . . . . . . . . . . Combat Hostiles . | . . . . . . . . . . . . Follow-up Attacks . | . . . . . . . . . . . . Damage Inflicted 3903 | 55 102 . 335 56 . 408 . 1322 1625 . . Guns 1127 | 55 102 . 335 54 . 162 . 27 392 . . Cannons 930 | . . . . . . 246 . 261 423 . . Explosions 1684 | . . . . . . . . 1034 650 . . Melee 151 | . . . . . . . . . 151 . . Ramming 11 | . . . . 2 . . . . 9 . . Kinetic 1067 | . 52 . 157 54 . 162 . 186 456 . . Thermal 822 | . . . . . . 246 . 102 474 . . Explosive 1547 | . . . . . . . . 1034 513 . . Electromagnetic 305 | 55 50 . 178 . . . . . 22 . . Impact 151 | . . . . . . . . . 151 . . Slashing . | . . . . . . . . . . . . Piercing . | . . . . . . . . . . . . Highest Corruption 5 | . 1 1 . . . 5 . . 3 3 3 Average Corruption 3 | . 1 1 . . . 5 . . 2 3 3 Corruption Purged . | . . . . . . . . . . . . Corruption Blocked . | . . . . . . . . . . . . Effects 28 | . . . . . . 16 . . 8 3 1 Message Errors 4 | . . . . . . 4 . . . . . Matter Fused 8 | . . . . . . 5 . . 2 1 . Heat Flow Errors 3 | . . . . . . . . . 1 1 1 Energy Discharges 3 | . . . . . . 2 . . . 1 . Parts Rejected 1 | . . . . . . . . . 1 . . Data Loss (minor) 4 | . . . . . . 1 . . 3 . . Data Loss (major) 2 | . . . . . . 2 . . . . . Misfires 2 | . . . . . . 2 . . . . . Alerts 1 | . . . . . . . . . 1 . . Overload Shots . | . . . . . . . . . . . . Overflow Damage 176 | . . . . . . . . . 176 . . Projectiles . | . . . . . . . . . . . . Explosions 155 | . . . . . . . . . 155 . . Melee 21 | . . . . . . . . . 21 . . Knockbacks 4 | . . . . . . . . 3 1 . . Impact 1 | . . . . . . . . . 1 . . Kinetic 3 | . . . . . . . . 3 . . . Secondary . | . . . . . . . . . . . . Self-Inflicted Damage 585 | . . . . . . . . 62 523 . . Shots 19 | . . . . . . . . 4 15 . . Rammed . | . . . . . . . . . . . . Targets Rammed 2 | . . . . 1 . . . . 1 . . Kicked 2 | . . . . 1 . . . . 1 . . Crushed . | . . . . . . . . . . . . Highest Temperature 541 | . . . 360 192 40 187 . 215 541 68 168 Average Temperature 118 | . . . 128 99 20 67 . 112 170 48 119 Received Heat Transfer 711 | . . . 207 . . 141 . 9 279 18 57 Effects 14 | . . . 5 . . . . . 9 . . Shutdowns 5 | . . . 2 . . . . . 3 . . Energy Bleed 2 | . . . 1 . . . . . 1 . . Interference 2 | . . . 2 . . . . . . . . Short Circuit 1 | . . . . . . . . . 1 . . Damage (major) 4 | . . . . . . . . . 4 . . Siege Activations . | . . . . . . . . . . . . Robots Corrupted 1 | . . . . . . . . . 1 . . Combat Hostiles 1 | . . . . . . . . . 1 . . Parts Fried 1 | . . . . . . . . . 1 . . Impact Corruptions 2 | . . . . . . . . . 2 . . Robots Melted 1 | . . . . . . 1 . . . . . Combat Hostiles 1 | . . . . . . 1 . . . . . Parts Melted 2 | . . . . . . 2 . . . . . Heat Transferred 1288 | . . . . . . 444 . 185 659 . . Parts Sabotaged . | . . . . . . . . . . . . Parts Stolen . | . . . . . . . . . . . . Parts Stripped . | . . . . . . . . . . . . Power Chain Reactions . | . . . . . . . . . . . . Alert | -11 -10 -10 -9 -9 -7 -6 -6 -6 -5 -5 -5 ------- Run | Yrd Mat Min Mat Min Zio Pro Fac DSF Fac Upp Upp Peak Influence 288 | 10 101 33 217 107 . . 115 250 288 . . Initial 115 | . 5 33 10 2 . . 115 73 113 . . Average 118 | 2 33 33 89 104 . . 115 171 158 . . Maximum Alert Level 1 | . . . 1 . . . . 1 1 . . Low Security (%) 79 | 100 100 100 89 100 . . 100 54 66 . . Level 1 20 | . . . 10 . . . . 45 33 . . Level 2 . | . . . . . . . . . . . . Level 3 . | . . . . . . . . . . . . Level 4 . | . . . . . . . . . . . . Level 5 . | . . . . . . . . . . . . High Security . | . . . . . . . . . . . . Max Security . | . . . . . . . . . . . . Sterilizations 1 | . . . . . . . . 1 . . . Squads Dispatched 7 | . . . . . . . . 2 5 . . Investigation 1 | . . . . . . . . . 1 . . Extermination 1 | . . . . . . . . . 1 . . Reinforcement 5 | . . . . . . . . 2 3 . . Assault . | . . . . . . . . . . . . Garrison . | . . . . . . . . . . . . Intercept . | . . . . . . . . . . . . Searches Triggered . | . . . . . . . . . . . . Construction Impeded 1 | . . . . . . . . . 1 . . Haulers Reinforced . | . . . . . . . . . . . . Active Scanning Responses . | . . . . . . . . . . . . Cargo Convoy Interrupts . | . . . . . . . . . . . . Stealth | -11 -10 -10 -9 -9 -7 -6 -6 -6 -5 -5 -5 --------- Run | Yrd Mat Min Mat Min Zio Pro Fac DSF Fac Upp Upp Distress Signals 1 | . 1 . . . . . . . . . . Communications Jammed . | . . . . . . . . . . . . Distress Signals . | . . . . . . . . . . . . Times Spotted 86 | . 11 . 11 4 . 22 . 9 16 5 8 Peak Tracking Total 7 | . 6 . 4 4 . 7 . 3 6 5 5 Tactical Retreats 12 | . 3 . . . . 3 . 1 3 1 1 Traps | -11 -10 -10 -9 -9 -7 -6 -6 -6 -5 -5 -5 ------- Run | Yrd Mat Min Mat Min Zio Pro Fac DSF Fac Upp Upp Traps Triggered 3 | . 1 . . . . . . 2 . . . Indirectly . | . . . . . . . . . . . . Trap Hack Attempts . | . . . . . . . . . . . . Triggered . | . . . . . . . . . . . . Disarmed . | . . . . . . . . . . . . Reprogrammed . | . . . . . . . . . . . . Reused . | . . . . . . . . . . . . Traps Extracted . | . . . . . . . . . . . . Installed . | . . . . . . . . . . . . Triggered . | . . . . . . . . . . . . Machines | -11 -10 -10 -9 -9 -7 -6 -6 -6 -5 -5 -5 ---------- Run | Yrd Mat Min Mat Min Zio Pro Fac DSF Fac Upp Upp Machines Disabled 11 | . . . . . 1 . . . 10 . . Max in Single Turn 9 | . . . . . 1 . . . 9 . . Machines Repaired . | . . . . . . . . . . . . Machines Dismantled . | . . . . . . . . . . . . Machines Sabotaged . | . . . . . . . . . . . . Overloaded Fab Kills . | . . . . . . . . . . . . Hacking | -11 -10 -10 -9 -9 -7 -6 -6 -6 -5 -5 -5 --------- Run | Yrd Mat Min Mat Min Zio Pro Fac DSF Fac Upp Upp Machines Accessed 5 | . 1 . . . . 1 1 . 2 . . Terminals 4 | . 1 . . . . 1 1 . 1 . . Fabricators . | . . . . . . . . . . . . Repair Stations . | . . . . . . . . . . . . Recycling Units 1 | . . . . . . . . . 1 . . Scanalyzers . | . . . . . . . . . . . . Garrison Access . | . . . . . . . . . . . . Total Hacks 9 | . 3 . . . . 1 1 . 4 . . Successful 7 | . 2 . . . . 1 1 . 3 . . Failed 2 | . 1 . . . . . . . 1 . . Catastrophic . | . . . . . . . . . . . . Database Lockouts . | . . . . . . . . . . . . Manual 1 | . 1 . . . . . . . . . . Terminals 6 | . 3 . . . . 1 1 . 1 . . Fabricators . | . . . . . . . . . . . . Repair Stations . | . . . . . . . . . . . . Recycling Units 3 | . . . . . . . . . 3 . . Scanalyzers . | . . . . . . . . . . . . Garrison Access . | . . . . . . . . . . . . Terminal Hacks 5 | . 2 . . . . 1 1 . 1 . . Record 2 | . 1 . . . . 1 . . . . . Open DSF 2 | . . . . . . . 1 . 1 . . Zone Layout 1 | . 1 . . . . . . . . . . Fabricator Hacks . | . . . . . . . . . . . . Repair Station Hacks . | . . . . . . . . . . . . Recycling Unit Hacks 2 | . . . . . . . . . 2 . . Recycle Component 1 | . . . . . . . . . 1 . . Process 1 | . . . . . . . . . 1 . . Scanalyzer . | . . . . . . . . . . . . Garrison Access Hacks . | . . . . . . . . . . . . Unauthorized Hacks . | . . . . . . . . . . . . Terminals . | . . . . . . . . . . . . Fabricators . | . . . . . . . . . . . . Repair Stations . | . . . . . . . . . . . . Recycling Units . | . . . . . . . . . . . . Scanalyzers . | . . . . . . . . . . . . Garrison Access . | . . . . . . . . . . . . Data Cores Recovered . | . . . . . . . . . . . . Used . | . . . . . . . . . . . . Hacking Detections 4 | . 1 . . . . 1 . . 2 . . Full Trace Events 1 | . . . . . . . . . 1 . . Feedback Events . | . . . . . . . . . . . . Feedback Blocked . | . . . . . . . . . . . . Robot Schematics Acquired 4 | . . . . . 4 . . . . . . Robots Built . | . . . . . . . . . . . . Authchips . | . . . . . . . . . . . . Time . | . . . . . . . . . . . . Total Robot Build Rating . | . . . . . . . . . . . . Part Schematics Acquired 15 | . . . . . 15 . . . . . . Parts Built . | . . . . . . . . . . . . Authchips . | . . . . . . . . . . . . Time . | . . . . . . . . . . . . Total Part Build Rating . | . . . . . . . . . . . . Parts Repaired . | . . . . . . . . . . . . Time . | . . . . . . . . . . . . Parts Recycled 1 | . . . . . . . . . 1 . . Recycled Matter 11 | . . . . . . . . . 11 . . Retrieved Matter . | . . . . . . . . . . . . Retrieved Components . | . . . . . . . . . . . . Parts Scanalyzed . | . . . . . . . . . . . . Part Schematics Acquired . | . . . . . . . . . . . . Parts Damaged . | . . . . . . . . . . . . Bothacking | -11 -10 -10 -9 -9 -7 -6 -6 -6 -5 -5 -5 ------------ Run | Yrd Mat Min Mat Min Zio Pro Fac DSF Fac Upp Upp Used RIF Installer . | . . . . . . . . . . . . Robots Hacked . | . . . . . . . . . . . . Non-combat . | . . . . . . . . . . . . Combat . | . . . . . . . . . . . . Robot Hacks Applied . | . . . . . . . . . . . . Relay Couplers Released . | . . . . . . . . . . . . Fabnet Peak Effective % . | . . . . . . . . . . . . Robots Rewired . | . . . . . . . . . . . . Allies Hacked . | . . . . . . . . . . . . Hacks Repelled . | . . . . . . . . . . . . Allies | -11 -10 -10 -9 -9 -7 -6 -6 -6 -5 -5 -5 -------- Run | Yrd Mat Min Mat Min Zio Pro Fac DSF Fac Upp Upp Total Allies 6 | . . 2 . . 4 . . . . . . Largest Group 4 | . . 2 1 . 4 4 3 3 . . . Highest-Rated Group 159 | . . 46 31 . 159 159 117 117 . . . Highest-Rated Ally 41 | . . 31 31 . 41 41 41 41 . . . Total Orders . | . . . . . . . . . . . . Ally Attacks 83 | . . . 9 . . 45 . 29 . . . Total Damage 1608 | . . . 142 . . 976 . 490 . . . Kills 18 | . . . 1 . . 16 . 1 . . . Allies Corrupted . | . . . . . . . . . . . . Allies Melted . | . . . . . . . . . . . . Intel | -11 -10 -10 -9 -9 -7 -6 -6 -6 -5 -5 -5 ------- Run | Yrd Mat Min Mat Min Zio Pro Fac DSF Fac Upp Upp Robot Analysis Total . | . . . . . . . . . . . . Derelict Logs Recovered 1 | . . . . . 1 . . . . . . Drone Launches . | . . . . . . . . . . . . Drone Recoveries . | . . . . . . . . . . . . Exploration | -11 -10 -10 -9 -9 -7 -6 -6 -6 -5 -5 -5 ------------- Run | Yrd Mat Min Mat Min Zio Pro Fac DSF Fac Upp Upp Turns Passed 6786 | 87 181 36 480 192 3732 746 78 210 850 163 31 Spaces Moved 3858 | 49 134 28 220 92 1926 420 30 96 483 319 61 Core 582 | 8 . . . . . . . . 196 317 61 Treads . | . . . . . . . . . . . . Legs 3140 | 41 134 28 220 92 1926 420 30 96 153 . . Wheels 2 | . . . . . . . . . . 2 . Hover . | . . . . . . . . . . . . Flight 134 | . . . . . . . . . 134 . . Fastest Speed 50 | 50 120 120 120 190 190 120 260 120 50 50 50 Average Speed 163 | 131 120 120 183 190 190 165 260 146 144 50 50 Slowest Speed 450 | 250 120 120 190 190 190 260 260 260 450 80 50 Overloaded Moves . | . . . . . . . . . . . . Propulsion Burnouts . | . . . . . . . . . . . . Robots Hopped . | . . . . . . . . . . . . Cave-ins Triggered . | . . . . . . . . . . . . Exploration Rate (%) 35 | 4 31 7 21 32 90 62 1 88 19 61 15 Regions Visited 11 Branch Regions 6 Pre-discovered Areas . | . . . . . . . . . . . . Known Exits Taken 4 | . . . . . . 1 1 . 1 1 . Unknown Exits Taken 6 | 1 1 1 1 1 1 . . . . . . Scrap Searched 5 | . . 1 . 1 1 1 . . . 1 . Spaces Dug 1 | . . . . . . . . . 1 . . Terrain Destroyed 128 | . . . . . . . . 49 79 . . Melee 1 | . . . . . . . . . 1 . . Projectile . | . . . . . . . . . . . . AOE 127 | . . . . . . . . 49 78 . . Terrain Rammed . | . . . . . . . . . . . . Walls Destroyed . | . . . . . . . . . . . . Machines Disabled . | . . . . . . . . . . . . Actions | -11 -10 -10 -9 -9 -7 -6 -6 -6 -5 -5 -5 --------- Run | Yrd Mat Min Mat Min Zio Pro Fac DSF Fac Upp Upp Total 4131 | 63 142 30 266 100 1959 449 31 137 572 321 61 Wait 51 | . . 2 9 1 3 5 . . 31 . . Move 3847 | 48 133 27 219 91 1925 419 29 95 482 318 61 Hop . | . . . . . . . . . . . . Pick Up 22 | 3 . 1 8 . 3 1 . 3 2 1 . Fast Attach 31 | 7 1 . 1 1 . 2 1 11 6 1 . Attach 11 | . . . 1 1 . 1 . 1 7 . . Detach 5 | . 1 . . . . . . 2 2 . . Swap 19 | 1 . . 6 1 2 6 . 2 1 . . Drop 23 | . . . 7 . 2 3 1 8 1 1 . Fire 86 | 4 7 . 15 4 2 12 . 10 32 . . Melee 29 | . . . . . 22 . . . 7 . . Ram . | . . . . . . . . . . . . Kick 2 | . . . . 1 . . . . 1 . . Crush . | . . . . . . . . . . . . Escape Stasis 5 | . . . . . . . . 5 . . . Rewire . | . . . . . . . . . . . . Trap . | . . . . . . . . . . . . Miscellaneous . | . . . . . . . . . . . . Route ------- -11/Scrapyard -10/Materials -10/Mines -9/Materials -9/Mines (discovered 2 exits: [*Mat] / *Zio) -7/Zion -6/Proximity Caves -6/Factory (discovered 2 exits: Low / DSF) -6/DSF -5/Factory -5/Upper Caves -5/Upper Caves History --------- Turn | Location | Event 20 | -11/Scrapyard | Discovered new exit (range 15) 88 | -11/Scrapyard | Entered Materials 175 | -10/Materials | Discovered new exit (range 13) 269 | -10/Materials | Entered Mines 272 | -10/Mines | Discovered new exit (range 12) 305 | -10/Mines | Build established: Mutant 305 | -10/Mines | Entered Materials 305 | -9/Materials | Accompanied by 1 ally 305 | -9/Materials | Evolved 2 slots: Power x1, Utility x1 310 | -9/Materials | Led the pair of lost Derelicts to an unsafe place 615 | -9/Materials | Discovered new exit (range 8) 785 | -9/Materials | Entered Mines 932 | -9/Mines | Met a Derelict bent on vengeance 949 | -9/Mines | Discovered new exit (range 15) 950 | -9/Mines | A Derelict revealed a hidden shortcut to a safe place 977 | -9/Mines | Entered Zion 1090 | -7/Zion | Given A8's code to call for help 1315 | -7/Zion | Met Imprinter 1363 | -7/Zion | Imprinted 1365 | -7/Zion | Declared Zion's savior 1481 | -7/Zion | Found Prototype Launcher 4673 | -7/Zion | Discovered new exit (range 15) 4709 | -7/Zion | Entered Proximity Caves 4709 | -6/Proximity Caves | Accompanied by 4 allies 4761 | -6/Proximity Caves | Attracted the attention of an 0b10 base 5112 | -6/Proximity Caves | Build established: Scavenger-Mutant 5349 | -6/Proximity Caves | Attracted the attention of an 0b10 checkpoint 5419 | -6/Proximity Caves | Discovered new exit (range 13) 5453 | -6/Proximity Caves | Identified exit to Factory 5455 | -6/Proximity Caves | Entered Factory 5455 | -6/Factory | Accompanied by 3 allies 5455 | -6/Factory | Evolved 6 slots: Power x1, Propulsion x2, Utility x1, Weapon x2 5456 | -6/Factory | Identified exit to Lower Caves 5533 | -6/Factory | Identified exit to DSF 5533 | -6/Factory | Entered DSF 5533 | -6/DSF | Accompanied by 3 allies 5573 | -6/DSF | Additional patrols routed to DSF 5609 | -6/DSF | Identified Rocket Array 5664 | -6/DSF | Lost 3 allies 5717 | -6/DSF | Discovered new exit (range 16) 5719 | -6/DSF | Sterilization system engaged 5739 | -6/DSF | Ambient heat levels rising (+10) 5742 | -6/DSF | Identified exit to Factory 5743 | -6/DSF | Entered Factory 5743 | -5/Factory | Evolved 2 slots: Propulsion x1, Utility x1 5900 | -5/Factory | Build established: Gunner 5983 | -5/Factory | Lost 9 parts (1p3n1u4w) 6063 | -5/Factory | Lost 5 parts (1p2n2w) 6270 | -5/Factory | Build established: Mutant 6502 | -5/Factory | Core integrity fell below 50% 6533 | -5/Factory | Lost 6 parts (1p1n1u3w) 6584 | -5/Factory | Discovered new exit (range 14) 6591 | -5/Factory | Identified exit to Upper Caves 6593 | -5/Factory | Entered Upper Caves 6733 | -5/Upper Caves | Attracted the attention of an 0b10 checkpoint 6750 | -5/Upper Caves | Core integrity fell below 20% 6751 | -5/Upper Caves | Discovered new exit (range 11) 6756 | -5/Upper Caves | Identified exit to Upper Caves 6756 | -5/Upper Caves | Entered another Upper Caves area 6787 | -5/Upper Caves | Destroyed by G-67 Veteran with Field Laser Last Messages --------------- 06672_ Acquired Imp. Heat Sink. 06732_ Slug penetrates Wall. 06733_ Y-64 Sentinel: "INTERCEPTING UNREGISTERED DERELICT." 06734_ Slug penetrates Wall. 06740_ Searching scrap... 06740_ Found Kinecellerator. 06740_ Found System Shield. 06740_ Found 39 Matter. 06743_ Acquired 2 matter. 06744_ Acquired 13 matter. 06744_ Acquired 2 matter. 06745_ Acquired Wheel. 06748_ Wheel destroyed. 06751_ EXIT=FOUND 06756_ EXIT=IDENTIFIED: UPPER CAVES LOCATION=UPPER CAVES GOAL=ESCAPE 06783_ System corrupted: Heat flow error (+199). [Achievement: Achiever] Map ----- +----------------------------------------------------+ | ?????????????????????????????????????????????????? | | ?????????????????????????????????????????????????? | | ?????????????????????????????????????????????????? | | ?????????????????????????????????????????????????? | | ?????????????????????????????????????????????????? | | ?????????????????????????????????????????????????? | | ?????????????????????????????????????????????????? | | ?????????????????????????????????????????????????? | | ?????????????????????????????????????????????????? | | ?????????????????????????????????????????????????? | | ?????????????????????????????????????????????????? | | ????????????????????? ???????????????????????????? | | ??????????????????? ???????????????????????????? | | ???????????????????# ###????????????????????????? | | ??????????????????## #???????????????????????? | | ??????????????????# ???????????????????????? | | ??????????????????# ???????????????????????? | | ??????????????????? #??????????????????????? | | ???????????????????# #??????????????????????? | | ???????????????????? #??????????????????????? | | ????????????????????# #??????????????????##### | | ????????????????????# #??????????????????# | | ????????????????????# ##?????????????????# " " | | ???????????????????## #?????????????????# " " | | ???????????????????# #?????????????????# " | | ??????????????????## @ ####??####????????# "" | | ??????????????????# ##?# ########## | | ??????????????????## ### ### | | ???????????????????# ## ### | | ??????????????????# #?## #?# ##### | | ??????????????????# ???## gg #?# #???### | | ??????????????????# ?????# g #?# #?????## | | ??????????????????# ??????# ### #??????## | | ??????????????????#???????## ## ##???????# | | ???????????????????????????# ##????????# | | ???????????????????????????## ##????????? | | ????????????????????????????## ##????#????? | | ?????????????????????????????# ##????? ??? | | ?????????????????????????????# ####????? ? | | ?????????????????????????????####????????# | | ?????????????????????????????????????????# | | ???????????????????????????????????????? | | ???????????????????????????????????????? | | ??????????????????????????????????????????# | | ??????????????????????????????????????????# | | ???????????????????????????????????????????# | | ???????????????????????????????????????????#### | | ??????????????????????????????????????????????## | | ???????????????????????????????????????????????## | | ????????????????????????????????????????????????## | +----------------------------------------------------+ Best States ------------- Heat Dissipation 54 Energy Generation 35 Energy Capacity 430 Matter Stores 300 Matter Capacity 300 Sight Range 16 Terrain Scan Range 16 Terrain Scan Density 10 ECM Strength 1 Armor Coverage 150 Resistance: KI 20 Resistance: TH 20 Resistance: EX 20 Resistance: EM 20 Resistance: I 20 Resistance: S 20 Resistance: P 20 Evasion (%) 55 Offensive Hacking 10 Trap Extractor Capacity 4 Item Schematics ----------------- Magnetic Acceleration Cannon | -7/Zion | Archive Gravmag System | -7/Zion | Archive Imp. Core Shielding | -7/Zion | Archive Adv. ECM Suite | -7/Zion | Archive Imp. Particle Charger | -7/Zion | Archive Adv. System Restoration Module | -7/Zion | Archive Adv. Assault Cannon | -7/Zion | Archive Imp. Field Recycling Unit | -7/Zion | Archive EM Disruption Field | -7/Zion | Archive Recalibrator | -7/Zion | Archive Hvy. Machine Gun | -7/Zion | Archive Gauss Rifle | -7/Zion | Archive Flak Gun | -7/Zion | Archive Adv. Shield Generator | -7/Zion | Archive Focal Shield | -7/Zion | Archive Robot Schematics ------------------ P-60 Hacker | -7/Zion | Archive S-27 Virus | -7/Zion | Archive B-48 Gladiator | -7/Zion | Archive C-57 Dissector | -7/Zion | Archive Fabricated ------------ Nothing Alien Tech Used ----------------- None Achievements -------------- Achiever Oops Challenges ------------ None Game ------ Seed PointRingShockpuncher Manual? 0 Play Time 00:39:49 Cumulative 23.0 hours Start 2025.03.30 @ 09:35:18 End 2025.03.30 @ 10:17:07 Sessions 1 Manual Loads 0 Difficulty Adventurer Special Mode None Game No. 60 Rogue 32 Adventurer 28 Explorer 0 Win Type - Total 0 Types 0/0/0/0/0/0/0/0/0 Lore% 15 Gallery% 33 Achievement% 25 Wizard Run 0 Options --------- Layout 1 ASCII 0 Keyboard 1 Movement Numpad Keybinds 0 Fullscreen 2 Font 32/SmallcapsGlow Map View 50x35 Zoom Use 0% Tactical HUD 1 Map Filters NONE Filters NONE Steam 1 RUN: 679110a5-14df-4543-8a5d-639319a6785e